fUSD/lending_fUSD_20240618
["ID","MTS","AMOUNT","RATE_DAILY","PERIOD"]
[329782407,1718669444657,-500.0,0.00021917,2]
[329782408,1718669444666,-500.0,0.00021917,2]
[329782409,1718669444676,-1091.72,0.00021917,2]
[329782410,1718669444686,-1365.76,0.00021917,2]
[329782411,1718669444696,-924.28,0.00021917,2]
[329782412,1718669444706,-545.19,0.00021917,2]
[329782413,1718669444716,-500.0,0.00021917,2]
[329782414,1718669444725,-1035.78,0.00021917,2]
[329782415,1718669444734,-500.0,0.00021917,2]
[329782416,1718669444743,-835.83,0.00021917,2]
[329782417,1718669444753,-9198.25,0.00021917,2]
[329782418,1718669444762,-703.66,0.00021917,2]
[329782419,1718669444773,-500.0,0.00021917,2]
[329782420,1718669444784,-882.16,0.00021917,2]
[329782421,1718669444793,-2121.35,0.00021917,2]
[329782422,1718669444803,-567.85,0.00021917,2]
[329782423,1718669444812,-560.54,0.00021917,2]
[329782424,1718669444821,-500.0,0.00021917,2]
[329782425,1718669444832,-1955.5,0.00021917,2]
[329782426,1718669444841,-500.0,0.00021917,2]
[329782427,1718669444851,-1429.65,0.00021917,2]
[329782428,1718669444863,-500.0,0.00021917,2]
[329782429,1718669444872,-10421.86,0.00021917,2]
[329782430,1718669444881,-9525.27,0.00021917,2]
[329782431,1718669444891,-500.0,0.00021917,2]
[329782432,1718669444900,-500.0,0.00021917,2]
[329782433,1718669444909,-1302.93,0.00021917,2]
[329782434,1718669444919,-1256.68,0.00021917,2]
[329782435,1718669444928,-500.0,0.00021917,2]
[329782436,1718669444937,-568.57,0.00021917,2]
[329782437,1718669444947,-717.49,0.00021917,2]
[329782438,1718669444957,-1446.85,0.00021917,2]
[329782439,1718669444967,-1878.33,0.00021917,2]
[329782440,1718669444976,-500.0,0.00021917,2]
[329782441,1718669444985,-500.0,0.00021917,2]
[329782442,1718669444994,-500.0,0.00021917,2]
[329782443,1718669445004,-2959.04,0.00021917,2]
[329782444,1718669445012,-500.0,0.00021917,2]
[329782445,1718669445022,-3333.05,0.00021917,2]
[329782446,1718669445031,-500.0,0.00021917,2]
[329782447,1718669445040,-3333.93698081,0.00021917,2]
[329782448,1718669445062,-978.19563102,0.00021917,2]
[329782449,1718669445424,-504.08999982,0.00021917,2]
[329782450,1718669445434,-378.1299995,0.00021917,2]
[329782452,1718669445450,-72.14738885,0.00021917,2]
[329782454,1718669445459,-521.34691739,0.00021917,2]
[329782456,1718669445469,-906.50569376,0.00021917,2]
[329782458,1718669445480,-513.778761,0.00021917,2]
[329782460,1718669445893,-821.46862785,0.00021917,2]
[329782461,1718669445903,-107.76354493,0.00021917,2]
[329782462,1718669446130,-559.4562792,0.00021917,2]
[329782463,1718669447410,-1189.54347578,0.00021917,2]
[329782464,1718669447422,-490.78670009,0.00021917,2]
[329782465,1718669447431,-500.0,0.00021917,2]
[329782466,1718669447442,-4454.79,0.00021917,2]
[329782467,1718669447451,-1275.38,0.00021917,2]
[329782468,1718669447461,-556.52,0.00021917,2]
[329782469,1718669447470,-73.01769144,0.00021917,2]
[329782470,1718669447494,-426.98230856,0.00021917,2]
[329782471,1718669447503,-1653.77,0.00021917,2]
[329782472,1718669447513,-502.40923827,0.00021917,2]
[329782473,1718669447522,-500.0,0.00021917,2]
[329782474,1718669447531,-629.66,0.00021917,2]
[329782475,1718669447541,-487.77845317,0.00021917,2]
[329782476,1718669447656,-3186.46154683,0.00021917,2]
[329782477,1718669447665,-500.0,0.00021917,2]
[329782478,1718669447676,-1475.63,0.00021917,2]
[329782479,1718669447685,-500.0,0.00021917,2]
[329782480,1718669447695,-1226.24,0.00021917,2]
[329782481,1718669447705,-506.58,0.00021917,2]
[329782482,1718669447714,-500.0,0.00021917,2]
[329782483,1718669447724,-637.05,0.00021917,2]
[329782484,1718669447734,-833.19,0.00021917,2]
[329782485,1718669447744,-500.0,0.00021917,2]
[329782486,1718669447754,-643.32,0.00021917,2]
[329782487,1718669447764,-500.0,0.00021917,2]
[329782488,1718669447775,-2802.64,0.00021917,2]
[329782489,1718669447788,-17994.74,0.00021917,2]
[329782490,1718669447798,-6332.26,0.00021917,2]
[329782491,1718669447807,-2221.23,0.00021917,2]
[329782492,1718669447817,-819.64649673,0.00021917,2]
[329782493,1718669447830,-30.53350327,0.00021917,2]
[329782494,1718669447842,-452.58629365,0.00021917,2]
[329782495,1718669447854,-47.41370635,0.00021917,2]
[329782497,1718669447867,-248.85302526,0.00021917,2]
[329782498,1718669447888,-858.84795557,0.00021917,2]
[329782499,1718669447900,-609.78901917,0.00021917,2]
[329782500,1718669447911,-500.0,0.00021917,2]
[329782501,1718669447921,-500.0,0.00021917,2]
[329782502,1718669447931,-500.0,0.00021917,2]
[329782503,1718669447941,-500.0,0.00021917,2]
[329782504,1718669447950,-11775.02,0.00021917,2]
[329782505,1718669447961,-500.0,0.00021917,2]
[329782506,1718669447970,-500.0,0.00021917,2]
[329782507,1718669447980,-500.0,0.00021917,2]
[329782508,1718669447989,-2803.0991893,0.00021917,2]
[329782515,1718670031392,162.89,0.00021589,30]
[329782815,1718670588591,162.89,0.00021589,30]
[329782824,1718670632102,-1910.0,0.000183,2]
[329782825,1718670632112,-315.25,0.00018792,2]
[329782826,1718670632121,-300.0,0.00019451,2]
[329782827,1718670632132,-1304.0,0.00020698,2]
[329782828,1718670632143,-1370.592,0.00020698,2]
[329782829,1718670632152,-447.0,0.00020698,2]
[329782830,1718670632162,-897.893,0.00020698,2]
[329782831,1718670632173,-3197.0,0.00020698,2]
[329782832,1718670632184,-547.0,0.00020698,2]
[329782833,1718670632196,-1271.0,0.00020698,2]
[329782834,1718670632205,-4107.593,0.00020698,2]
[329782835,1718670632216,-5162.0,0.00020698,2]
[329782836,1718670632226,-1196.0,0.00020698,2]
[329782837,1718670632236,-250.0,0.00020726,2]
[329782838,1718670632246,-501.93,0.00020942,2]
[329782839,1718670632255,-315.25,0.00021056,2]
[329782840,1718670632265,-420.0,0.00021192,2]
[329782841,1718670632275,-1000.0,0.000217,2]
[329782842,1718670632287,-453.2699,0.00021717,2]
[329782843,1718670632297,-211.8466,0.00021717,2]
[329782844,1718670632306,-208.0337703,0.00021717,2]
[329782845,1718670632315,-200.0,0.00021741,2]
[329782846,1718670632325,-1000.0,0.00021741,2]
[329782847,1718670632335,-200.0,0.00021741,2]
[329782848,1718670632344,-500.0,0.00021741,2]
[329782849,1718670632353,-200.0,0.00021741,2]
[329782850,1718670632363,-200.0,0.00021741,2]
[329782851,1718670632372,-500.0,0.00021741,2]
[329782852,1718670632382,-200.0,0.00021741,2]
[329782854,1718670632392,-500.0,0.00021741,2]
[329782856,1718670632401,-200.0,0.00021742,2]
[329782858,1718670632410,-200.0,0.00021742,2]
[329782859,1718670632422,-200.0,0.00021742,2]
[329782860,1718670632431,-1000.0,0.00021742,2]
[329782861,1718670632440,-1000.0,0.00021742,2]
[329782862,1718670632449,-200.0,0.00021742,2]
[329782863,1718670632458,-500.0,0.00021742,2]
[329782864,1718670632467,-500.0,0.00021742,2]
[329782865,1718670632476,-500.0,0.00021742,2]
[329782866,1718670632486,-200.0,0.00021742,2]
[329782867,1718670632495,-200.0,0.00021742,2]
[329782868,1718670632505,-2688.39276045,0.0002179,2]
[329782869,1718670632514,-1000.0,0.000218,2]
[329782870,1718670632524,-500.0,0.00021816,2]
[329782871,1718670632533,-7956.9268,0.00021817,2]
[329782872,1718670632543,-160624.4783,0.00021817,2]
[329782873,1718670632552,-20975.10950503,0.00021817,2]
[329782874,1718670632583,-2562.75335091,0.00021817,2]
[329782875,1718670638839,-701.89106013,0.00020698,2]
[329782876,1718670638900,-23266.58693987,0.00020698,2]
[329782877,1718670638910,-1659.0,0.00020698,2]
[329782878,1718670638920,-1696.0,0.000218,2]
[329782879,1718670638932,-25323.53208877,0.00021817,2]
[329782880,1718670639017,-1769.67135529,0.00021817,2]
[329782881,1718670639027,-10017.0348,0.00021817,2]
[329782882,1718670639037,-7500.0,0.00021817,2]
[329782883,1718670639047,-173.26790298,0.00021817,2]
[329782884,1718670639056,-856.58310859,0.00021817,2]
[329782885,1718670639066,-150.0,0.00021876,2]
[329782886,1718670639076,-150.0,0.00021877,2]
[329782887,1718670639086,-150.0,0.00021878,2]
[329782888,1718670639095,-150.0,0.00021883,2]
[329782889,1718670639105,-150.0,0.00021884,2]
[329782890,1718670639116,-150.0,0.00021886,2]
[329782891,1718670639126,-150.0,0.0002189,2]
[329782892,1718670639135,-150.0,0.00021891,2]
[329782893,1718670639145,-150.0,0.00021893,2]
[329782894,1718670639155,-489.0,0.000219,4]
[329782895,1718670639164,-100.85612978,0.000219,2]
[329782921,1718670640657,-190.14387022,0.000219,2]
[329782923,1718670640668,-710.0,0.000219,2]
[329782925,1718670640681,-150.0,0.000219,3]
[329782928,1718670640692,-150.0,0.00021903,2]
[329782930,1718670640702,-150.0,0.00021904,2]
[329782932,1718670640713,-150.0,0.00021906,2]
[329782934,1718670640723,-702.45801612,0.00021912,2]
[329782936,1718670640734,-11804.59944128,0.00021912,2]
[329782938,1718670640747,-9613.92971346,0.00021912,2]
[329782940,1718670640759,-7849.97467302,0.00021912,2]
[329782942,1718670640772,-537.13443052,0.00021912,2]
[329782960,1718670640954,-1258.93178513,0.00021912,2]
[329782962,1718670640966,-910.0,0.00021912,2]
[329782964,1718670640978,-4608.4,0.00021912,2]
[329782969,1718670641030,-3107.12544579,0.00021912,2]
[329782971,1718670641042,-1602.958863,0.00021912,2]
[329782972,1718670641052,-3230.959254,0.00021912,2]
[329782974,1718670641062,-1378.64008617,0.00021912,2]
[329782977,1718670641074,-775.77409809,0.00021912,2]
[329782980,1718670641090,-233.63467294,0.00021912,2]
[329782983,1718670641100,-1003.34528865,0.00021912,2]
[329782989,1718670641614,-586.80049511,0.00021912,2]
[329782990,1718670641627,-409.45999997,0.00021912,2]
[329782991,1718670641639,-500.09,0.00021912,2]
[329782993,1718670641769,-9421.24890367,0.00021912,2]
[329782994,1718670641779,-172.20017913,0.00021916,2]
[329782995,1718670641789,-202.32768482,0.00021916,2]
[329782996,1718670641799,-658.77323238,0.00021916,2]
[329782998,1718670641811,-1022.04087,0.00021916,2]
[329783022,1718670642902,-6687.536406,0.00021916,2]
[329783028,1718670643072,-525.52500016,0.00021916,2]
[329783029,1718670643085,-501.35,0.00021916,2]
[329783030,1718670643097,-748.12442162,0.00021916,2]
[329783031,1718670643109,-892.99999995,0.00021916,2]
[329783032,1718670643468,-4885.01777195,0.00021916,2]
[329783033,1718670643483,-1851.12984424,0.00021916,2]
[329783034,1718670646227,-270.462826,0.00021916,2]
[329783035,1718670646240,-1748.9835148,0.00021916,2]
[329783036,1718670646255,-12330.88654522,0.00021916,2]
[329783037,1718670646266,-342.02419767,0.00021916,2]
[329783038,1718670646276,-588.0,0.00021917,2]
[329783039,1718670646285,-3758.52451941,0.00021917,2]
[329783040,1718670646295,-500.0,0.00021917,2]
[329783041,1718670646304,-508.71904701,0.00021917,2]
[329783042,1718670646313,-500.0,0.00021917,2]
[329783043,1718670646323,-500.0,0.00021917,2]
[329783044,1718670646332,-500.0,0.00021917,2]
[329783045,1718670646342,-500.0,0.00021917,2]
[329783046,1718670646351,-500.0,0.00021917,2]
[329783047,1718670646361,-500.0,0.00021917,2]
[329783048,1718670646370,-500.0,0.00021917,2]
[329783049,1718670646380,-500.0,0.00021917,2]
[329783050,1718670646390,-500.0,0.00021917,2]
[329783051,1718670646399,-500.0,0.00021917,2]
[329783052,1718670646409,-500.0,0.00021917,2]
[329783053,1718670646417,-500.0,0.00021917,2]
[329783054,1718670646427,-500.0,0.00021917,2]
[329783055,1718670646439,-500.0,0.00021917,2]
[329783056,1718670646449,-500.0,0.00021917,2]
[329783057,1718670646459,-500.0,0.00021917,2]
[329783059,1718670646469,-500.0,0.00021917,2]
[329783061,1718670646478,-559.96580501,0.00021917,2]
[329783063,1718670646488,-500.0,0.00021917,2]
[329783064,1718670646498,-500.0,0.00021917,2]
[329783066,1718670646507,-500.0,0.00021917,2]
[329783068,1718670646517,-170.46016099,0.00021917,2]
[329783069,1718670646526,-501.79621637,0.00021917,2]
[329783071,1718670646535,-500.0,0.00021917,2]
[329783072,1718670646545,-500.0,0.00021917,2]
[329783074,1718670646554,-500.0,0.00021917,2]
[329783076,1718670646563,-500.0,0.00021917,2]
[329783078,1718670646574,-500.0,0.00021917,2]
[329783079,1718670646583,-157.15532006,0.00021917,2]
[329783081,1718670646596,-342.84467994,0.00021917,2]
[329783083,1718670646606,-500.0,0.00021917,2]
[329783085,1718670646616,-500.0,0.00021917,2]
[329783086,1718670646625,-455.23,0.00021917,2]
[329783088,1718670646635,-500.0,0.00021917,2]
[329783089,1718670646645,-500.0,0.00021917,2]
[329783090,1718670646655,-500.0,0.00021917,2]
[329783091,1718670646665,-500.0,0.00021917,2]
[329783092,1718670646675,-500.0,0.00021917,2]
[329783093,1718670646685,-500.0,0.00021917,2]
[329783094,1718670646695,-220.45837682,0.00021917,2]
[329783095,1718670646710,-37.98567746,0.00021917,2]
[329783096,1718670646720,-500.0,0.00021917,2]
[329783097,1718670646729,-500.0,0.00021917,2]
[329783098,1718670646739,-500.0,0.00021917,2]
[329783099,1718670646749,-445.80154355,0.00021917,2]
[329783100,1718670646758,-101.37650599,0.00021917,2]
[329783106,1718671112562,162.89,0.00021589,30]
[329783264,1718671832387,-300.0,0.00013899,2]
[329783265,1718671832398,-240.74856908,0.000139,2]
[329783266,1718671832408,-173.26790298,0.000139,2]
[329783267,1718671832419,-467.5535,0.000139,2]
[329783268,1718671832429,-1625.5312,0.000139,2]
[329783269,1718671832440,-182.02954896,0.000139,2]
[329783270,1718671832450,-150.0,0.00013973,2]
[329783271,1718671832460,-10111.78967899,0.00013999,2]
[329783272,1718671832474,-1000.0,0.00013999,2]
[329783273,1718671832486,-328.885,0.00013999,2]
[329783274,1718671832499,-501.08,0.00013999,2]
[329783275,1718671832512,-510.3000105,0.00013999,2]
[329783276,1718671832524,-726.48604474,0.00013999,2]
[329783277,1718671832537,-1500.0,0.00013999,2]
[329783278,1718671832788,-1327.9266,0.00013999,2]
[329783279,1718671832801,-388.88750137,0.00013999,2]
[329783291,1718671838245,-257.82237684,0.00013999,2]
[329783292,1718671838261,-777.33880091,0.00013999,2]
[329783293,1718671838275,-795.2682055,0.00013999,2]
[329783294,1718671838288,-1007.38297438,0.00013999,2]
[329783295,1718671838302,-12266.21967178,0.00013999,2]
[329783296,1718671838315,-53637.49453123,0.00013999,2]
[329783297,1718671838339,-688.28020813,0.00013999,2]
[329783298,1718671838352,-996.7313497,0.00013999,2]
[329783299,1718671838365,-3385.96953395,0.00013999,2]
[329783300,1718671838378,-14386.23751198,0.00013999,2]
[329783301,1718671838388,-184912.08803719,0.00014,2]
[329783302,1718671838400,-633.84,0.00014,2]
[329783303,1718671838413,-2625.31380456,0.00014,2]
[329783304,1718671838426,-2692.08418534,0.00014,2]
[329783305,1718671838493,-13256.686,0.00014,2]
[329783306,1718671838507,-868.26928846,0.00014,2]
[329783307,1718671838521,-10816.66281497,0.00014,2]
[329783308,1718671838534,-4621.52324931,0.00014,2]
[329783309,1718671838547,-6185.98287592,0.00014,2]
[329783310,1718671838562,-272757.0342311,0.00014,2]
[329783311,1718671838592,-1575.69909023,0.00014,2]
[329783312,1718671838605,-4430.33002035,0.00014,2]
[329783313,1718671838620,-10859.41738551,0.00014,2]
[329783314,1718671838635,-284.51111494,0.00014,2]
[329783315,1718671838649,-845.57482597,0.00014,2]
[329783316,1718671838664,-22230.81641486,0.00014,2]
[329783317,1718671838677,-4572.78453988,0.00014,2]
[329783318,1718671838690,-902.15263318,0.00014,2]
[329783319,1718671838703,-10391.0,0.00014,2]
[329783339,1718671840962,-647.42386246,0.00014,2]
[329783340,1718671840974,-1694.39868045,0.00014,2]
[329783349,1718671844364,-500.0,0.00014,2]
[329783354,1718671844376,-4155.09641126,0.00014,2]
[329783359,1718671844602,-1460.32639976,0.00014,2]
[329783360,1718671844618,-510.95458281,0.00014,2]
[329783361,1718671844632,-468.67992952,0.00014,2]
[329783362,1718671844643,-1058.52056441,0.00014,2]
[329783363,1718671844654,-24067.32736272,0.00014,2]
[329783364,1718671844667,-1791.45712628,0.00014,2]
[329783365,1718671844678,-6954.03353777,0.00014,2]
[329783366,1718671844838,-5553.21271244,0.00014,2]
[329783367,1718671844850,-67117.15149717,0.00014,2]
[329783368,1718671844863,-4349.01500908,0.00014,2]
[329783369,1718671844875,-1086.99545133,0.00014,2]
[329783378,1718671845384,-2601.45388436,0.00014,2]
[329783380,1718671845396,-6080.51205195,0.00014,2]
[329783381,1718671845407,-853.89680327,0.00014,2]
[329783382,1718671845452,-127662.25213586,0.00014,2]
[329783383,1718671845463,-63130.29169134,0.00014,2]
[329783384,1718671845506,-793.84925753,0.00014,2]
[329783393,1718671846250,-286.54614425,0.00014,2]
[329783395,1718671846420,-1980.94079067,0.00014,2]
[329783396,1718671846431,-3577.8,0.00014,2]
[329783397,1718671846443,-442.00189353,0.00014,2]
[329783398,1718671846454,-3642.85020046,0.00014,2]
[329783399,1718671846465,-762.58582215,0.00014,2]
[329783400,1718671846476,-258.89284226,0.00014,2]
[329783401,1718671846487,-3365.20411288,0.00014,2]
[329783402,1718671846498,-1657.7088,0.00014,2]
[329783403,1718671846510,-852.18109769,0.00014,2]
[329783404,1718671846588,-799.193,0.00014,2]
[329783405,1718671846600,-6629.11495999,0.00014,2]
[329783406,1718671846611,-335.56074743,0.00014,2]
[329783407,1718671846623,-934.86860183,0.00014,2]
[329783408,1718671846635,-2784.7,0.00014,2]
[329783409,1718671846650,-310.0765343,0.00014,2]
[329783410,1718671846743,-607.97134023,0.00014,2]
[329783895,1718671857657,162.89,0.00021589,30]
[329783897,1718672218774,306.456572,0.00022,30]
[329783898,1718672468456,162.89,0.00021589,30]
[329783912,1718672717653,857644.96438767,0.00022,30]
[329783928,1718673032537,-264.1328159,0.00013434,2]
[329783929,1718673032547,-1715.65278181,0.00013435,2]
[329783930,1718673032556,-314.77467748,0.00013437,2]
[329783931,1718673032565,-147.40136192,0.00013439,2]
[329783933,1718673032914,-479.12690914,0.00013439,2]
[329783935,1718673032924,-373.18,0.00013586,2]
[329783937,1718673032933,-250.0,0.00013624,2]
[329783939,1718673032943,-250.0,0.00013624,2]
[329783941,1718673032952,-2516.74,0.00013699,2]
[329783943,1718673032962,-712.91,0.00013833,2]
[329783945,1718673032972,-382.72650143,0.00013845,2]
[329783947,1718673032981,-219.86,0.0001389,2]
[329783949,1718673032994,-1000.0,0.000139,2]
[329783951,1718673033011,-2556.6024,0.000139,2]
[329783953,1718673033029,-317.28396319,0.000139,2]
[329783955,1718673033040,-215.64274998,0.000139,2]
[329783957,1718673033049,-817.88,0.0001399,3]
[329783959,1718673033059,-187.29,0.00013993,2]
[329783961,1718673033068,-18541.77156164,0.00013997,2]
[329783963,1718673033077,-115.17295612,0.00013998,2]
[329783965,1718673033089,-86.70811309,0.00013998,2]
[329783967,1718673033099,-217.4798775,0.00013998,2]
[329783968,1718673033110,-155.0,0.00013998,2]
[329783969,1718673033119,-407.68898763,0.00013998,2]
[329783970,1718673033129,-777.2630943,0.00013998,2]
[329783971,1718673033138,-352.54328315,0.00013998,2]
[329783972,1718673033151,-155.87757539,0.00013998,2]
[329783973,1718673033160,-198.92955654,0.00013998,2]
[329783974,1718673033170,-3868.21225512,0.00013999,2]
[329783975,1718673033179,-155.0,0.00013999,2]
[329783976,1718673033187,-558.19063024,0.00014,2]
[329783977,1718673033199,-2152.94574309,0.00014,2]
[329783979,1718673038508,-558.88373102,0.00013624,2]
[329783980,1718673038521,-1435.55683634,0.00013624,2]
[329783981,1718673038533,-16961.59303939,0.00013624,2]
[329783982,1718673038676,-413.89116843,0.00013624,2]
[329783983,1718673038689,-4510.07522482,0.00013624,2]
[329783984,1718673038699,-5802.5720637,0.00014,2]
[329783985,1718673038712,-376.17167403,0.00014,2]
[329783986,1718673038725,-13133.7,0.00014,2]
[329783987,1718673038736,-5403.48247186,0.00014,2]
[329783989,1718673038828,-3283.27622552,0.00014,2]
[329783991,1718673038840,-766.0,0.00014,2]
[329783993,1718673038851,-7734.82972179,0.00014,2]
[329783995,1718673038863,-147633.56670039,0.00014,2]
[329783998,1718673038876,-9029.50703311,0.00014,2]
[329784086,1718673041997,-13888.79313183,0.00014,2]
[329784087,1718673042113,-23335.13535588,0.00014,2]
[329784088,1718673042145,-4759.08758781,0.00014,2]
[329784089,1718673042156,-1748.56626615,0.00014,2]
[329784090,1718673042179,-1120.0285415,0.00014,2]
[329784091,1718673042191,-637.3124501,0.00014,2]
[329784092,1718673042202,-813.60381013,0.00014,2]
[329784093,1718673042216,-2306.43251992,0.00014,2]
[329784094,1718673042232,-1633.22490011,0.00014,2]
[329784095,1718673042764,-187023.53251816,0.00014,2]
[329784096,1718673042775,-1404.90517718,0.00014,2]
[329784171,1718673043619,-5210.46617815,0.00014,2]
[329784177,1718673043780,-50000.0,0.00014,2]
[329784178,1718673043796,-1822.31939735,0.00014,2]
[329784179,1718673044009,-3296.06622932,0.00014,2]
[329784189,1718673046657,-6344.68282213,0.00013433,2]
[329784193,1718673047070,-3299.1596196,0.00013433,2]
[329784194,1718673047081,-868.95,0.00013433,2]
[329784195,1718673047094,-2657.095158,0.00013433,2]
[329784196,1718673047104,-637.881642,0.00014,2]
[329784201,1718673294757,162.89,0.00021589,30]
[329784202,1718673511881,183.04,0.00011629,2]
[329784209,1718673887685,162.89,0.00021589,30]
[329784285,1718674235610,-155.0,0.00012545,2]
[329784290,1718674235621,-113.5619315,0.00012546,2]
[329784295,1718674235634,-265.64801112,0.00012546,2]
[329784302,1718674235647,-150.02297654,0.00012546,2]
[329784309,1718674235656,-155.0,0.00012547,2]
[329784315,1718674235666,-153.86202346,0.00012598,2]
[329784322,1718674235678,-1.82801258,0.00012598,2]
[329784327,1718674235687,-204.37562916,0.00012598,2]
[329784331,1718674235697,-174.68,0.0001389,3]
[329784335,1718674235708,-187.74635826,0.00013898,2]
[329784338,1718674235720,-991.72163097,0.00013898,2]
[329784340,1718674235733,-70.53201077,0.00013898,2]
[329784342,1718674235743,-1250.0,0.00013899,2]
[329784344,1718674235753,-150.0,0.00013899,2]
[329784346,1718674235762,-1000.0,0.000139,2]
[329784348,1718674235772,-2440.6402,0.000139,2]
[329784350,1718674235781,-163.8151,0.000139,2]
[329784352,1718674235791,-225.66957578,0.000139,2]
[329784354,1718674235803,-2488.32184878,0.000139,2]
[329784357,1718674235815,-890.46767544,0.000139,2]
[329784359,1718674235829,-849.78607626,0.000139,2]
[329784361,1718674235839,-317.28396318,0.000139,2]
[329784363,1718674235849,-1547.10279346,0.00013986,2]
[329784364,1718674235859,-159.41017296,0.00013998,2]
[329784366,1718674235868,-268.98603627,0.00013998,2]
[329784367,1718674235878,-263.80739103,0.00013998,2]
[329784368,1718674235888,-317.12810746,0.00013998,2]
[329784369,1718674235897,-179.69787641,0.00013998,2]
[329784370,1718674235908,-155.61375484,0.00013998,2]
[329784371,1718674235918,-28.77758931,0.00013998,2]
[329784372,1718674235930,-597.19287643,0.00013998,2]
[329784373,1718674235940,-407.43731595,0.00013998,2]
[329784374,1718674235950,-1273.2742168,0.00013998,2]
[329784375,1718674235962,-120.39729455,0.00013998,2]
[329784376,1718674235971,-1446.65511409,0.00013998,2]
[329784377,1718674235981,-217.32093162,0.00013998,2]
[329784378,1718674235991,-8231.62669057,0.00013998,2]
[329784379,1718674236000,-339.59139,0.00013998,2]
[329784380,1718674236010,-2004.49651681,0.00013999,2]
[329784381,1718674236019,-54.51541812,0.00013999,2]
[329784382,1718674236031,-1716.95632841,0.00013999,2]
[329784383,1718674236043,-283.49421343,0.00013999,2]
[329784384,1718674236056,-202208.54061939,0.00013999,2]
[329784385,1718674236065,-80552.36327754,0.00014,2]
[329784386,1718674236082,-499.2998041,0.00014,2]
[329784387,1718674236094,-1203.90295571,0.00014,2]
[329784388,1718674236105,-2219.9999988,0.00014,2]
[329784389,1718674236117,-2268.60502638,0.00014,2]
[329784390,1718674236128,-5795.812086,0.00014,2]
[329784391,1718674236140,-4668.04030603,0.00014,2]
[329784392,1718674236151,-13815.19371779,0.00014,2]
[329784393,1718674236163,-148829.48930278,0.00014,2]
[329784394,1718674236174,-831.66201726,0.00014,2]
[329784395,1718674236185,-578.5596183,0.00014,2]
[329784396,1718674236197,-758.97760629,0.00014,2]
[329784397,1718674236208,-2670.35134403,0.00014,2]
[329784398,1718674236219,-1184.85534718,0.00014,2]
[329784399,1718674236231,-1033.7,0.00014,2]
[329784412,1718674240214,-51205.59195658,0.00014,2]
[329784413,1718674240228,-8888.25663115,0.00014,2]
[329784414,1718674240241,-678.22361413,0.00014,2]
[329784415,1718674240254,-807.17588612,0.00014,2]
[329784416,1718674240266,-4656.94536571,0.00014,2]
[329784417,1718674240279,-3087.92278451,0.00014,2]
[329784418,1718674240291,-2085.9,0.00014,2]
[329784419,1718674240304,-6560.0,0.00014,2]
[329784420,1718674240315,-1016.05191121,0.00014,2]
[329784421,1718674240335,-323.8635894,0.00014,2]
[329784422,1718674240348,-899.16407372,0.00014,2]
[329784423,1718674240361,-1274.25252714,0.00014,2]
[329784424,1718674240373,-2998.59329399,0.00014,2]
[329784425,1718674240386,-1657.79463469,0.00014,2]
[329784426,1718674240398,-4446.93560755,0.00014,2]
[329784427,1718674240410,-6057.17263617,0.00014,2]
[329784428,1718674241461,-2828.9730002,0.00014,2]
[329784429,1718674241475,-656.40712742,0.00014,2]
[329784430,1718674241491,-2295.80647228,0.00014,2]
[329784431,1718674241503,-416.31078647,0.00014,2]
[329784432,1718674241518,-1533.76204898,0.00014,2]
[329784433,1718674241528,-155.9550727,0.00014,2]
[329784434,1718674241538,-500.0,0.00014,2]
[329784435,1718674241548,-500.0,0.00014,2]
[329784436,1718674241559,-500.0,0.00014,2]
[329784437,1718674241568,-151.0,0.00014,2]
[329784438,1718674241586,-500.0,0.00014,2]
[329784439,1718674241595,-151.0,0.00014,2]